bitfinex/quotes_ETHUSD_20241212
["timestamp","ask_amount","ask_price","bid_price","bid_amount"]
[1733985297779,0.02408238,3929.5,3929.2,2.8155453]
[1733985299143,1.3319,3929.3,3928.8,2.8155453]
[1733985299343,1.93819,3929.9,3928.3,6.13393148]
[1733985299344,0.55,3929.1,3928.3,6.13393148]
[1733985299507,0.02395322,3929.0,3928.7,2.8155453]
[1733985301123,0.02395322,3929.0,3928.7,3.20883191]
[1733985301638,0.55,3929.1,3928.7,3.20883191]
[1733985302044,0.02369699,3929.0,3928.7,3.20883191]
[1733985302334,0.02369699,3929.0,3928.8,0.39328661]
[1733985305008,0.02369699,3929.0,3928.3,3.19502487]
[1733985305204,0.02369699,3929.0,3928.3,3.58831148]
[1733985305410,0.02369699,3929.0,3928.4,0.39328661]
[1733985309252,0.55,3929.1,3928.4,0.39328661]
[1733985309415,0.23769633,3929.0,3928.4,0.39328661]
[1733985309616,0.02339416,3929.0,3928.4,0.39328661]
[1733985314460,0.55,3929.1,3928.4,2.93884661]
[1733985315752,0.02339416,3929.0,3928.4,2.93884661]
[1733985319159,0.55,3929.1,3928.4,2.93884661]
[1733985319367,0.55,3929.1,3928.5,2.54549]
[1733985319573,0.02336506,3929.0,3928.5,2.54549]
[1733985324061,0.7819,3929.2,3928.5,2.54549]
[1733985324276,0.02336485,3928.9,3928.5,2.54549]
[1733985324476,0.7819,3929.2,3928.5,2.54549]
[1733985324678,0.23787597,3929.1,3928.5,2.54549]
[1733985324879,0.02336528,3929.1,3928.5,2.54549]
[1733985325247,0.23796375,3929.0,3928.5,2.54549]
[1733985325451,0.02336506,3929.0,3928.5,2.54549]
[1733985325779,0.02336485,3928.9,3928.5,2.54549]
[1733985325941,0.7819,3929.2,3928.5,2.54549]
[1733985326145,0.26130815,3929.1,3928.4,0.39328661]
[1733985326377,0.23794287,3929.0,3928.4,0.39328661]
[1733985326586,0.23794287,3928.9,3928.4,2.93884661]
[1733985326795,0.7819,3929.2,3928.4,2.93884661]
[1733985326947,0.02336464,3928.8,3928.4,2.93884661]
[1733985327149,0.7819,3929.2,3928.4,3.55223376]
[1733985327381,0.26146115,3929.1,3928.4,2.93884661]
[1733985327546,0.23809587,3929.0,3928.4,2.93884661]
[1733985327751,0.26146072,3928.9,3928.4,0.39328661]
[1733985327951,0.02336485,3928.9,3928.4,0.39328661]
[1733985328148,0.8084,3928.8,3928.4,0.39328661]
[1733985328379,0.23812218,3928.7,3928.0,3.04862138]
[1733985328582,0.8084,3928.8,3927.9,2.8155453]
[1733985328787,0.55,3928.5,3927.7,0.13256652]
[1733985328949,0.8084,3928.3,3927.2,4.13559979]
[1733985329155,0.8084,3928.1,3927.4,1.32286962]
[1733985329363,0.02322315,3928.0,3927.4,1.32286962]
[1733985329558,0.8084,3928.1,3927.4,1.8334869]
[1733985329758,0.26106868,3928.0,3927.4,1.8334869]
[1733985329966,0.0232115,3928.0,3927.4,1.8334869]
[1733985330179,0.8084,3928.1,3927.4,1.8334869]
[1733985330398,0.02321129,3927.9,3927.4,1.32286962]
[1733985330685,0.0232115,3928.0,3927.4,1.71615623]
[1733985330858,2.54557,3928.4,3926.7,1.58925979]
[1733985330859,2.54603,3927.7,3926.7,1.58925979]
[1733985331049,0.8084,3927.4,3926.6,0.39328661]
[1733985331250,0.55,3927.3,3926.6,0.39328661]
[1733985331466,0.23741749,3927.2,3926.6,0.39328661]
[1733985331667,0.55,3927.3,3926.6,0.39328661]
[1733985332048,0.8084,3927.0,3926.6,0.39328661]
[1733985339908,0.8084,3927.0,3926.4,0.13262984]
[1733985346021,2.546,3927.8,3926.4,0.13262984]
[1733985346022,0.8084,3927.9,3926.5,3.20597895]
[1733985346318,0.8084,3927.9,3926.9,2.54652]
[1733985347682,0.8084,3927.9,3927.1,2.54639]
[1733985348651,0.8084,3927.9,3927.0,1.18168661]
[1733985349287,0.8084,3929.1,3927.3,2.81222492]
[1733985349619,2.78131353,3929.0,3927.7,2.546]
[1733985349821,1.04453353,3928.9,3927.7,2.546]
[1733985350530,2.54532,3928.8,3927.4,1.53699952]
[1733985350822,0.55,3928.7,3927.5,2.54611]
[1733985351408,0.8084,3928.6,3927.5,2.54611]
[1733985351928,0.8084,3928.6,3927.5,0.74013788]
[1733985352222,0.8084,3928.6,3927.6,2.54605]
[1733985352890,0.8084,3928.6,3927.5,1.10842449]
[1733985353242,0.8084,3928.6,3927.8,2.5459]
[1733985353528,0.8084,3928.6,3927.9,2.54588]
[1733985353723,0.8084,3928.6,3928.0,0.57263915]
[1733985354428,0.8084,3928.6,3927.8,3.36828661]
[1733985354625,0.8084,3928.6,3927.7,2.81222492]
[1733985356321,0.8084,3928.6,3927.1,2.54637]
[1733985356322,0.7945,3928.4,3927.3,2.81222492]
[1733985356521,0.7945,3928.1,3927.3,2.81222492]
[1733985356741,1.183516,3928.1,3927.1,3.0]
[1733985356905,0.57251827,3928.0,3927.0,3.36828661]
[1733985357422,0.7945,3927.9,3927.0,3.36828661]
[1733985357724,0.81681994,3927.9,3927.0,3.36828661]
[1733985358149,0.81681994,3927.9,3927.1,0.50040957]
[1733985358919,0.7945,3927.7,3927.1,0.50040957]
[1733985359111,0.7945,3927.7,3927.0,0.36828661]
[1733985359819,0.7945,3928.2,3927.1,3.69343745]
[1733985360022,0.0223193,3927.6,3927.2,0.36828661]
[1733985360221,0.7945,3928.2,3927.2,0.36828661]
[1733985360621,0.7945,3928.2,3927.3,2.81222492]
[1733985360829,0.7945,3928.2,3927.3,3.53515111]
[1733985361023,0.55,3928.1,3927.3,3.53515111]
[1733985362464,0.55,3928.1,3927.3,2.81222492]
[1733985364229,0.55,3927.9,3926.9,0.50381857]
[1733985364435,0.7945,3927.6,3926.9,0.50381857]
[1733985364644,3.34071,3927.4,3926.8,0.13244441]
[1733985364854,0.55,3927.7,3926.8,0.13244441]
[1733985364855,3.34085,3927.2,3926.8,0.13244441]
[1733985365052,0.7945,3927.1,3926.8,0.13244441]
[1733985366276,0.55,3927.0,3926.8,0.13244441]
[1733985373875,0.55,3927.0,3926.2,0.72359952]
[1733985374046,0.55,3927.0,3926.2,0.85613296]
[1733985377080,0.23693154,3927.3,3926.6,0.7932]
[1733985377281,0.8105,3927.4,3926.7,0.7288291]
[1733985377483,0.8105,3927.4,3926.7,0.36828661]
[1733985380399,0.8105,3927.4,3926.6,0.7932]
[1733985383184,0.8105,3927.4,3926.4,2.54684]
[1733985383759,0.8105,3927.4,3926.3,0.7659]
[1733985383760,0.23722376,3927.3,3926.3,0.7659]
[1733985383966,0.23722376,3927.3,3926.2,3.53582444]
[1733985383967,1.02302064,3927.2,3926.2,3.53582444]
[1733985384170,0.23721531,3927.1,3926.2,3.53582444]
[1733985384375,0.7358,3927.2,3926.3,0.36828661]
[1733985384582,0.7358,3927.2,3926.3,0.72359952]
[1733985385390,0.23735871,3927.1,3926.3,1.40846996]
[1733985385698,0.7358,3927.2,3926.3,1.40846996]
[1733985385894,0.23736305,3927.1,3926.3,1.40846996]
[1733985386190,0.23746276,3927.0,3926.3,1.40846996]
[1733985386367,0.7358,3927.2,3926.3,1.40846996]
[1733985386567,0.23746967,3927.1,3926.3,1.40846996]
[1733985386771,0.23746967,3927.0,3926.3,1.40846996]
[1733985387107,0.7358,3927.2,3926.3,0.72359952]
[1733985387265,0.23745756,3927.1,3926.4,1.32348347]
[1733985387597,1.1157321,3927.2,3926.4,1.32348347]
[1733985387598,0.23745756,3927.0,3926.4,1.32348347]
[1733985387793,0.7358,3927.2,3926.4,1.32348347]
[1733985387992,1.064008,3927.2,3926.4,1.32348347]
[1733985388197,0.23748001,3927.1,3926.4,1.32348347]
[1733985388367,0.23748001,3927.0,3926.4,1.32348347]
[1733985388562,1.064008,3927.2,3926.4,1.32348347]
[1733985388764,0.23750033,3927.1,3926.4,1.32348347]
[1733985388982,0.23750033,3927.0,3926.4,1.32348347]
[1733985389183,0.7358,3927.2,3926.4,1.32348347]
[1733985389382,0.55,3927.0,3926.4,1.32348347]
[1733985389592,1.0233157,3926.9,3926.4,1.32348347]
[1733985389794,0.7858,3926.9,3926.4,1.32348347]
[1733985390201,0.23752521,3926.8,3926.4,1.32348347]
[1733985390395,0.7858,3926.9,3926.4,1.32348347]
[1733985390600,0.23752578,3926.8,3926.4,1.32348347]
[1733985390801,0.7858,3926.9,3926.4,1.32348347]
[1733985391103,0.7858,3926.9,3926.7,1.32348347]
[1733985391911,5.63493638,3928.6,3926.7,1.32348347]
[1733985391912,0.7858,3927.2,3926.7,2.45767008]
[1733985392095,1.3358,3927.4,3926.8,0.36828661]
[1733985392301,0.23769597,3927.3,3926.8,0.36828661]
[1733985392470,1.3358,3927.4,3926.8,0.36828661]
[1733985392471,0.23769597,3927.2,3926.8,0.36828661]
[1733985392812,1.3358,3927.4,3926.8,0.36828661]
[1733985392993,0.23769427,3927.3,3926.8,0.36828661]
[1733985393199,0.23769427,3927.2,3926.8,0.36828661]
[1733985393401,1.3358,3927.4,3926.8,0.36828661]
[1733985393712,0.23778268,3927.3,3926.8,0.36828661]
[1733985393897,0.23778268,3927.2,3926.8,0.36828661]
[1733985394207,1.3358,3927.4,3926.8,0.36828661]
[1733985394414,0.23787593,3927.3,3926.8,0.36828661]
[1733985394705,0.23787593,3927.2,3926.8,0.36828661]
[1733985394908,0.23787593,3927.1,3926.8,0.36828661]
[1733985395108,1.3358,3927.4,3926.8,0.36828661]
[1733985395313,0.55,3927.2,3926.8,0.36828661]
[1733985395632,0.23787296,3927.1,3926.8,0.36828661]
[1733985395816,0.55,3927.3,3926.8,0.36828661]
[1733985395978,0.23781642,3927.2,3926.8,0.36828661]
[1733985396179,0.23781642,3927.1,3926.8,0.36828661]
[1733985396379,0.55,3927.3,3926.8,0.36828661]
[1733985396580,0.23780518,3927.2,3926.8,0.36828661]
[1733985396937,0.23780518,3927.1,3926.8,0.36828661]
[1733985397133,0.26547325,3927.5,3926.9,0.02546533]
[1733985397433,0.2378164,3927.4,3927.0,3.31236]
[1733985397632,0.26547325,3927.5,3927.1,0.40359595]
[1733985398481,0.26547325,3927.5,3926.8,0.36828661]
[1733985399112,0.26547325,3927.5,3926.6,2.81203417]
[1733985399113,0.7858,3927.3,3926.6,2.81203417]
[1733985399615,0.23774974,3927.2,3926.6,2.81203417]
[1733985399914,0.7858,3927.3,3926.6,2.81203417]
[1733985400109,0.7858,3927.3,3926.7,0.70904247]
[1733985400432,0.26547325,3927.5,3926.8,0.7659]
[1733985400739,0.26547325,3927.5,3926.9,2.54653]
[1733985401019,0.55,3927.8,3927.0,2.54645]
[1733985401181,0.23780491,3927.7,3927.0,2.54645]
[1733985401507,0.23780491,3927.6,3927.1,0.36806366]
[1733985401710,0.55,3927.8,3927.1,0.36806366]
[1733985401897,0.23777913,3927.7,3927.2,0.35531291]
[1733985402103,0.55,3927.8,3927.2,0.35531291]
[1733985402337,0.2378545,3927.7,3927.2,0.35531291]
[1733985402482,0.55,3927.8,3927.2,0.35531291]
[1733985402682,0.23788901,3927.7,3927.2,0.35531291]
[1733985403032,0.55,3927.8,3927.2,0.35531291]
[1733985403245,0.2378801,3927.7,3927.2,0.35531291]
[1733985403451,0.1839043,3927.7,3926.9,0.36828661]
[1733985403746,0.1839043,3927.7,3926.7,3.0]
[1733985403747,1.3574,3927.6,3926.7,0.35531291]
[1733985404432,1.3574,3927.6,3926.6,3.63453417]
[1733985405313,1.3574,3927.6,3926.6,6.54954078]
[1733985405741,0.55,3927.4,3926.6,0.36828661]
[1733985405942,0.23771133,3927.3,3926.6,0.36828661]
[1733985406143,0.55,3927.4,3926.6,0.36828661]
[1733985406342,0.23771916,3927.3,3926.6,0.36828661]
[1733985406546,0.23771916,3927.2,3926.6,0.36828661]
[1733985406789,0.55,3927.4,3926.6,0.36828661]
[1733985407211,0.23763639,3927.3,3926.6,0.36828661]
[1733985407585,0.55,3927.4,3926.6,0.36828661]
[1733985407877,0.23764077,3927.3,3926.6,0.36828661]
[1733985408084,0.8074,3927.2,3926.6,0.36828661]
[1733985408572,1.05613604,3927.8,3927.6,2.54608]
[1733985408765,1.86353604,3928.5,3927.8,2.54593]
[1733985408978,1.86353604,3928.5,3927.4,3.63453417]
[1733985408979,0.23760881,3928.4,3927.9,2.54586]
[1733985409120,0.8074,3928.5,3927.9,2.54586]
[1733985409315,0.8074,3928.5,3927.7,0.36828661]
[1733985409316,0.8074,3928.5,3927.8,2.81203417]
[1733985409564,0.8074,3928.5,3928.0,2.54581]
[1733985410124,0.8074,3928.5,3927.8,6.79190209]
[1733985410472,0.8074,3928.5,3927.9,0.83811619]
[1733985412980,0.8074,3928.5,3927.8,0.36828661]
[1733985413124,0.55,3928.4,3927.4,4.88814131]
[1733985413329,0.55,3928.4,3927.4,3.8225]
[1733985413529,0.55,3928.4,3927.4,0.8225]
[1733985413530,3.09558,3928.4,3927.4,0.8225]
[1733985413724,0.55,3928.2,3927.4,0.8225]
[1733985413942,0.390298,3928.3,3927.4,3.3687]
[1733985414161,0.55,3928.4,3927.4,3.73698661]
[1733985415283,0.55,3928.4,3927.4,1.19078661]
[1733985415583,0.23715956,3928.3,3927.4,0.36828661]
[1733985415745,0.55,3928.2,3927.4,0.36828661]
[1733985416150,0.55,3928.1,3927.4,0.36828661]
[1733985416335,0.55,3928.1,3926.9,4.24596209]
[1733985416536,0.55,3928.1,3926.9,3.18032078]
[1733985416769,0.55,3927.9,3926.9,3.18032078]
[1733985416994,0.8099,3927.8,3926.9,3.18032078]
[1733985417150,0.8099,3927.8,3926.9,3.77233023]
[1733985418330,0.55,3927.7,3926.9,3.77233023]
[1733985419384,0.37944239,3928.3,3926.9,4.12764314]
[1733985419590,1.05613604,3928.6,3927.7,2.81203417]
[1733985419591,1.18934239,3928.6,3927.7,2.81203417]
[1733985419798,0.95537534,3928.6,3927.8,2.54594]
[1733985420078,0.8099,3928.6,3927.8,2.91422661]
[1733985420534,0.8099,3928.6,3927.8,0.36828661]
[1733985420734,0.55,3928.5,3928.0,2.54581]
[1733985421387,0.55,3928.5,3928.1,2.81203417]
[1733985422520,0.55,3928.5,3927.8,0.36828661]
[1733985422834,0.8099,3928.6,3927.8,1.16442011]
[1733985422970,0.26541104,3928.7,3928.1,2.81203417]
[1733985423295,0.26541104,3928.7,3928.4,2.54554]
[1733985424066,0.26541104,3928.7,3928.5,2.54548]
[1733985424732,0.26541104,3928.7,3928.6,0.8318]
[1733985425014,0.26541104,3928.7,3928.6,1.81901803]
[1733985425365,0.26541104,3928.7,3928.1,1.06564131]
[1733985425366,0.26541104,3928.7,3928.1,1.89744131]
[1733985425573,0.26541104,3928.7,3928.1,0.8318]
[1733985425866,0.26541104,3928.7,3928.1,3.0]
[1733985426726,0.55,3928.6,3928.0,3.0]
[1733985426933,0.55,3928.6,3927.9,2.81203417]
[1733985427243,0.55,3928.6,3927.5,4.51433606]
[1733985427244,0.7140911,3928.6,3927.5,4.51433606]
[1733985427377,0.55,3928.4,3927.5,4.51433606]
[1733985428123,0.26555544,3928.3,3927.5,4.51433606]
[1733985428303,0.26555544,3928.3,3927.5,7.06046606]
[1733985428470,0.26555544,3928.3,3927.6,0.36828661]
[1733985429570,0.55,3928.2,3927.6,0.36828661]
[1733985429791,0.55,3928.0,3927.6,0.36828661]
[1733985429992,0.55,3928.0,3927.5,2.81203417]
[1733985430402,0.55,3927.8,3927.1,3.53563369]
[1733985430602,0.55,3927.6,3927.1,3.18032078]
[1733985431217,0.55,3927.6,3927.1,0.36828661]
[1733985437106,0.55,3927.6,3926.9,2.81203417]
[1733985438022,0.55,3927.6,3926.7,0.35531291]
[1733985438245,0.55,3927.2,3926.5,0.5130736]
[1733985438520,0.55,3927.2,3926.2,3.0]
[1733985438892,0.55,3927.2,3926.2,4.0936685]
[1733985439289,0.55,3927.2,3926.2,4.81726802]
[1733985439485,0.55,3927.2,3926.3,0.02546723]
[1733985439759,0.55,3927.2,3926.5,2.81203417]
[1733985439904,0.55,3927.2,3926.6,3.70327661]
[1733985440240,0.55,3927.2,3926.7,0.68706237]
[1733985440750,0.55,3927.2,3926.7,3.23370237]
[1733985441849,0.55,3927.2,3926.5,0.35531291]
[1733985441989,0.55,3927.2,3926.2,5.94760981]
[1733985442190,0.55,3927.2,3926.2,4.8819685]
[1733985443001,0.55,3927.2,3926.5,2.54679]
[1733985443433,0.799,3927.1,3926.3,0.36828661]
[1733985443612,0.799,3927.1,3926.5,2.54678]
[1733985443815,0.55,3927.0,3926.3,3.14601297]
[1733985444393,0.55,3927.0,3926.5,2.54677]
[1733985445552,0.799,3928.0,3926.5,4.29683369]
[1733985445847,0.26567176,3926.9,3926.8,2.54659]
[1733985446147,0.55,3927.9,3926.8,3.23093237]
[1733985446347,0.81565554,3927.9,3926.8,2.54659]
[1733985446499,0.55,3927.7,3926.8,2.54659]
[1733985446702,0.55,3927.7,3926.6,4.23480309]
[1733985447029,0.55,3927.7,3926.9,2.54651]
[1733985447413,0.55,3927.7,3927.0,2.54646]
[1733985447629,0.799,3927.8,3927.0,0.36828661]
[1733985447833,0.799,3927.8,3927.1,1.12948661]
[1733985448052,0.26565554,3927.9,3927.1,0.7612]
[1733985448195,0.26565554,3927.9,3927.3,2.54624]
[1733985449407,0.26565554,3927.9,3927.4,2.54621]
[1733985449734,0.26565554,3927.9,3927.5,2.54614]
[1733985450395,0.26565554,3927.9,3927.2,0.52092478]
[1733985450599,0.26565554,3927.9,3927.2,3.06720478]
[1733985450799,0.26565554,3927.9,3927.3,2.54625]
[1733985451026,0.26565554,3927.9,3927.4,2.54619]
[1733985451437,0.26565554,3927.9,3927.4,3.00795617]
[1733985453732,0.55,3927.8,3927.4,3.00795617]
[1733985458215,0.55,3927.8,3927.4,2.54619]
[1733985459006,0.55,3927.8,3927.2,0.52092478]
[1733985459202,0.55,3927.8,3927.2,3.52092478]
[1733985459743,0.26565554,3927.9,3927.2,0.52092478]
[1733985459744,0.55,3927.6,3927.2,0.52092478]
[1733985459946,0.71146555,3927.6,3927.2,0.52092478]
[1733985460159,0.71146555,3927.6,3926.7,6.30782]
[1733985460160,0.71146555,3927.6,3926.7,5.54662]
[1733985461324,0.71146555,3927.6,3926.7,6.04551828]
[1733985461632,0.26533378,3927.5,3926.7,6.04551828]
[1733985461835,0.55,3927.4,3926.7,6.04551828]
[1733985463209,0.55,3927.4,3926.7,3.04551828]
[1733985463478,0.799,3927.3,3926.7,0.49889828]
[1733985463650,0.55,3927.0,3926.7,0.49889828]
[1733985464162,0.55,3927.0,3926.0,0.33758576]
[1733985464344,0.55,3926.8,3926.0,0.33758576]
[1733985465017,0.799,3926.7,3926.0,0.33758576]
[1733985465320,0.55,3926.4,3925.5,0.33758576]
[1733985465526,1.05613604,3927.2,3925.5,0.33758576]
[1733985465527,0.55,3926.2,3925.5,0.33758576]
[1733985465727,0.55,3926.0,3925.5,0.33758576]
[1733985466137,0.55,3926.2,3925.5,0.33758576]
[1733985468252,0.799,3926.3,3925.7,2.54729]
[1733985469562,0.55,3926.2,3925.6,0.32569855]
[1733985469921,0.55,3926.2,3925.7,0.33758576]
[1733985470125,0.55,3926.2,3925.8,0.29793512]
[1733985470341,0.55,3926.2,3925.8,0.63552088]
[1733985471861,0.55,3926.2,3925.8,0.33758576]
[1733985473568,0.55,3926.2,3925.8,2.88482576]
[1733985473962,0.55,3926.2,3926.0,2.54708]
[1733985474264,0.55,3926.6,3926.1,0.33758576]
[1733985474423,0.55,3926.6,3926.3,2.54692]
[1733985474627,0.55,3926.9,3926.3,2.87048712]
[1733985475090,0.7945,3927.0,3926.5,2.54676]
[1733985475268,0.26533378,3927.5,3926.6,0.8108]
[1733985475269,0.7945,3927.4,3926.6,0.8108]
[1733985475467,0.7945,3927.4,3926.4,0.33758576]
[1733985475468,0.7945,3927.4,3926.4,2.88441576]
[1733985475804,0.7945,3927.4,3926.5,2.54675]
[1733985476476,0.55,3927.3,3926.5,2.54675]
[1733985476776,0.55,3927.3,3926.5,0.27177898]
[1733985476979,0.55,3927.3,3926.6,2.54671]
[1733985477482,0.55,3927.3,3926.4,0.33758576]
[1733985477679,0.55,3927.3,3926.4,3.33758576]
[1733985478279,0.55,3927.3,3926.4,2.88443576]
[1733985478594,0.55,3927.3,3926.4,3.66902017]
[1733985479303,0.55,3927.3,3926.4,1.12217017]
[1733985479447,0.55,3927.3,3926.6,2.54672]
[1733985479648,0.55,3927.3,3926.7,2.54665]
[1733985479847,0.55,3927.3,3926.4,4.12217017]
[1733985479848,0.55,3927.3,3927.0,2.54645]
[1733985480655,0.55,3927.3,3926.7,0.33758576]
[1733985480858,0.55,3927.3,3926.7,1.03355257]
[1733985481061,0.55,3927.3,3926.8,0.51982225]
[1733985482483,0.55,3927.3,3926.7,3.58020257]
[1733985482863,0.55,3927.3,3926.7,3.74920555]
[1733985483654,0.55,3927.3,3926.8,2.54658]
[1733985484053,0.55,3927.3,3926.8,2.8857166]
[1733985484966,0.55,3927.3,3926.9,2.54651]
[1733985485590,0.55,3927.4,3927.1,2.5464]
[1733985487377,0.55,3927.4,3927.1,2.5718615]
[1733985487577,0.55,3927.4,3927.1,2.5464]
[1733985487782,0.55,3927.4,3927.1,2.57186146]
[1733985487982,0.55,3927.4,3927.1,2.57186145]
[1733985488182,0.55,3927.4,3927.2,5.35637417]
[1733985488382,0.26533378,3927.5,3927.4,2.54621]
[1733985491282,0.81533378,3927.5,3927.3,5.54627]
[1733985491810,0.81533378,3927.5,3927.4,2.54621]
[1733985493226,0.81533378,3927.5,3927.4,6.99069431]
[1733985493227,0.26533378,3927.5,3927.4,6.99069431]
[1733985493568,0.26533378,3927.5,3927.4,8.29757832]
[1733985494818,0.26533378,3927.5,3927.4,8.81325261]
[1733985495327,3.78e-06,3927.5,3927.4,8.81325261]
[1733985495479,0.7898,3928.9,3928.4,2.54555]
[1733985495678,0.7898,3928.9,3928.4,5.35758417]
[1733985496509,0.7898,3928.9,3928.4,2.81203417]
[1733985496710,0.55,3928.8,3928.4,2.81203417]
[1733985496873,0.02277027,3928.7,3928.4,2.81203417]
[1733985497078,0.55,3928.8,3928.4,2.81203417]
[1733985497486,0.02277027,3928.7,3928.4,2.81203417]
[1733985497724,0.55,3928.8,3928.4,2.81203417]
[1733985498211,0.02277027,3928.7,3928.4,2.81203417]
[1733985498700,0.55,3928.8,3928.4,2.81203417]
[1733985498907,0.02277027,3928.7,3928.4,2.81203417]
[1733985499100,0.55,3928.8,3928.4,2.81203417]
[1733985499423,0.02277027,3928.7,3928.4,2.81203417]
[1733985499788,0.55,3928.8,3928.4,2.81203417]
[1733985500190,0.02277027,3928.7,3928.1,0.50055979]
[1733985500440,0.02277027,3928.7,3928.1,3.50055979]
[1733985500592,0.55,3928.6,3928.1,3.0]
[1733985500790,0.55,3928.4,3928.1,3.0]
[1733985501197,0.02295582,3928.3,3928.1,3.0]
[1733985501488,0.55,3928.4,3928.1,3.0]
[1733985501698,0.55,3928.4,3928.0,3.32186212]
[1733985502108,0.0229034,3928.3,3928.0,3.32186212]
[1733985503599,0.15917374,3928.3,3927.7,3.50351933]
[1733985503896,0.15917374,3928.3,3927.6,2.81203417]
[1733985503897,1.3104,3928.2,3927.6,2.81203417]
[1733985504309,0.02290297,3928.1,3927.6,2.81203417]
[1733985505326,0.02290297,3928.1,3927.7,0.02545906]
[1733985505489,1.3104,3928.2,3927.7,0.36304482]
[1733985505693,1.3104,3928.2,3927.7,0.96772357]
[1733985506494,1.3104,3928.2,3927.7,3.51372157]
[1733985506798,3.60102604,3929.5,3928.0,2.81203417]
[1733985506799,0.7604,3928.7,3928.0,2.81203417]
[1733985507198,0.02246711,3928.6,3928.0,2.81203417]
[1733985507800,0.02246711,3928.6,3928.0,5.35785417]
[1733985508000,0.55,3928.6,3928.1,3.15768542]
[1733985510224,0.55,3928.6,3928.1,0.61197542]
[1733985510429,1.2345292,3929.5,3928.5,2.54549]
[1733985510626,0.7604,3929.2,3928.4,2.81203417]
[1733985510999,0.02276529,3929.1,3928.4,2.81203417]
[1733985511818,0.57276529,3929.1,3928.4,2.81203417]
[1733985512020,0.55,3929.1,3928.4,2.81203417]
[1733985512335,0.57276507,3929.0,3928.4,2.81203417]
[1733985512833,0.02276507,3929.0,3928.4,2.81203417]
[1733985513040,0.55,3928.8,3928.4,2.81203417]
[1733985513941,0.02276443,3928.7,3928.4,2.81203417]
[1733985514303,0.55,3928.8,3928.4,2.81203417]
[1733985514732,0.02276443,3928.7,3928.4,2.81203417]
[1733985515143,0.55,3928.8,3928.4,2.81203417]
[1733985515508,0.02276443,3928.7,3928.4,2.81203417]
[1733985515927,0.55,3928.8,3928.4,2.81203417]
[1733985516318,0.02313145,3928.7,3928.4,2.81203417]
[1733985516836,0.55,3928.8,3928.4,2.81203417]
[1733985517026,0.02313124,3928.6,3928.4,2.81203417]
[1733985517227,0.55,3928.8,3928.4,2.81203417]
[1733985517446,0.02313102,3928.5,3928.4,2.81203417]
[1733985517739,0.55,3928.8,3928.4,2.81203417]
[1733985518121,0.0231431,3928.7,3928.4,2.81203417]
[1733985518537,0.55,3928.8,3928.4,2.81203417]
[1733985518924,0.0231431,3928.7,3928.4,2.81203417]
[1733985519310,0.55,3928.8,3928.4,2.81203417]
[1733985519640,0.0231431,3928.7,3928.4,2.81203417]
[1733985519844,0.55,3928.8,3928.4,2.81203417]
[1733985520047,0.02314289,3928.6,3928.4,2.81203417]
[1733985520341,0.55,3928.8,3928.4,2.81203417]
[1733985520723,0.0231431,3928.7,3928.4,2.81203417]
[1733985521110,0.55,3928.8,3928.4,2.81203417]
[1733985521311,0.55,3928.8,3928.6,1.3220523]
[1733985521724,0.0231431,3928.7,3928.6,3.8674623]
[1733985522022,0.02315475,3928.7,3928.4,0.8209]
[1733985522219,0.55,3928.8,3928.6,1.3220523]
[1733985522939,0.2655617,3928.9,3928.6,1.3220523]
[1733985523358,0.2655617,3928.9,3928.6,3.8674523]
[1733985523510,0.2655617,3928.9,3928.7,0.50866298]
[1733985528750,0.2655617,3928.9,3928.7,1.02836451]
[1733985529047,0.8155617,3928.9,3928.8,2.5453]
[1733985529235,0.02276507,3929.0,3928.9,2.54524]
[1733985529439,0.02276507,3929.0,3928.9,7.71363837]
[1733985529620,0.02276507,3929.0,3928.9,9.89064187]
[1733985531248,0.02276507,3929.0,3928.9,11.37588219]
[1733985531721,0.02276507,3929.0,3928.9,11.50406643]
[1733985531917,0.02276507,3929.0,3928.9,11.37588219]
[1733985532239,0.02276507,3929.0,3928.9,7.90530526]
[1733985533448,0.02276507,3929.0,3928.9,8.56858957]
[1733985535413,1.55,3929.9,3929.8,6.37305]
[1733985535613,1.55,3930.2,3930.1,6.37286]
[1733985535614,0.07539824,3930.2,3930.1,6.37286]
[1733985535840,4.31765737,3930.3,3930.2,3.0]
[1733985536035,4.31765737,3930.3,3930.2,3.71478431]
[1733985536238,4.31765737,3930.3,3930.2,4.42354874]
[1733985536644,1.55,3930.7,3930.6,6.37254]
[1733985536920,1.55,3930.7,3930.6,9.17983262]
[1733985537124,1.55,3930.7,3930.6,9.55703117]
[1733985537635,1.55,3930.7,3930.6,10.06341627]
[1733985537835,1.55,3930.7,3930.6,11.3241909]
[1733985539244,1.55,3930.8,3930.6,11.3241909]
[1733985539432,1.55,3930.8,3930.7,3.8284]
[1733985541936,1.55,3930.8,3930.7,3.0]
[1733985543846,2.1,3930.8,3930.7,2.80729262]
[1733985544052,2.1,3930.8,3930.2,0.71478431]
[1733985544231,2.1,3930.8,3930.7,5.80729262]
[1733985545462,2.8587,3930.8,3930.7,2.80729262]
[1733985548091,2.8587,3930.8,3930.2,4.21740673]
[1733985548092,0.55,3930.7,3930.2,0.50262242]
[1733985548269,0.55,3930.7,3930.4,3.0]
[1733985553158,0.26540992,3930.6,3930.4,3.0]
[1733985557059,0.26540992,3930.6,3930.5,0.8019]
[1733985557262,0.26540992,3930.6,3930.5,1.13948576]
[1733985557732,1.55,3930.8,3930.7,3.0]
[1733985558028,1.55,3930.8,3930.7,3.8019]
[1733985559469,1.55,3930.8,3930.7,5.80729262]
[1733985559698,1.55,3930.8,3930.4,4.4328915]
[1733985559896,1.55,3930.8,3930.7,5.80729262]
[1733985562317,2.1,3930.8,3930.4,3.0]
[1733985562529,0.7989,3930.6,3930.4,3.0]
[1733985567322,0.55,3930.7,3930.4,3.0]
[1733985567925,0.55,3930.7,3930.4,3.65643151]
[1733985568127,1.55,3930.8,3930.5,0.7922]
[1733985568447,1.55,3930.8,3930.7,5.80729262]
[1733985569703,1.55,3930.8,3930.7,3.0]
[1733985569903,2.3489,3930.8,3930.4,3.0]
[1733985571304,2.3489,3930.8,3930.4,3.99612241]